bitfinex/quotes_ETHUSD_20230109
["timestamp","ask_amount","ask_price","bid_price","bid_amount"]
[1673293464691,1.11861201,1332.1,1331.9,26.08915]
[1673293464933,2.04610212,1332.1,1331.9,26.08915]
[1673293465163,2.04610212,1332.1,1331.9,22.58915]
[1673293466644,2.04610212,1332.1,1331.9,26.08915]
[1673293467260,1.11861201,1332.1,1331.9,29.88681064]
[1673293467667,2.0457385,1332.1,1331.9,29.88681064]
[1673293468210,1.11861201,1332.1,1331.9,29.88681064]
[1673293469319,1.11861201,1332.1,1331.9,37.39488064]
[1673293469666,1.11861201,1332.1,1331.9,41.79805128]
[1673293469877,14.91347014,1332.2,1331.9,41.79805128]
[1673293470050,14.91347014,1332.2,1331.9,43.49305128]
[1673293470051,13.23585398,1332.2,1331.9,43.49305128]
[1673293470271,0.066,1332.2,1332.1,8.0]
[1673293470472,3.91245302,1332.4,1332.1,52.95544231]
[1673293470473,2.86222817,1332.4,1332.1,52.95544231]
[1673293470682,3.42933989,1332.4,1332.2,3.79766064]
[1673293470947,1.11861201,1332.4,1332.3,15.01162]
[1673293471171,2.04960986,1332.4,1332.3,15.07762]
[1673293471319,2.04960986,1332.4,1332.3,22.58343]
[1673293471684,2.04960986,1332.4,1332.3,7.57181]
[1673293471685,2.04961423,1332.4,1332.3,7.57181]
[1673293471844,2.04961423,1332.4,1332.3,15.07762]
[1673293471845,1.11861201,1332.4,1332.3,15.07762]
[1673293472051,1.11861201,1332.4,1332.3,22.58343]
[1673293472263,1.11861201,1332.4,1332.3,15.07762]
[1673293472932,13.28387647,1332.5,1332.3,15.07762]
[1673293473150,13.28387647,1332.5,1332.3,22.58343]
[1673293473885,13.28387647,1332.5,1332.3,29.7697907]
[1673293474104,1.22106031,1332.5,1332.4,5.49266064]
[1673293474283,1.22106031,1332.5,1332.4,34.39524763]
[1673293474284,0.0364483,1332.5,1332.4,34.39524763]
[1673293474482,0.0364483,1332.5,1332.4,34.39223737]
[1673293474676,0.0364483,1332.5,1332.4,41.12091211]
[1673293475102,0.0364483,1332.5,1332.4,36.49007512]
[1673293475950,0.0364483,1332.5,1332.4,21.47957512]
[1673293476160,0.0364483,1332.5,1332.4,28.98482512]
[1673293476388,0.0364483,1332.5,1332.4,33.10507512]
[1673293476818,0.0364483,1332.5,1332.4,33.11583801]
[1673293477304,0.0364483,1332.5,1332.4,55.11583801]
[1673293477675,0.0364483,1332.5,1332.4,47.61058801]
[1673293477832,0.0364483,1332.5,1332.4,55.11583801]
[1673293479890,0.0364483,1332.5,1332.4,56.79783801]
[1673293481651,0.0364483,1332.5,1332.4,64.30308801]
[1673293483348,0.0364483,1332.5,1332.4,70.62534089]
[1673293484885,0.0364483,1332.5,1332.4,70.61934089]
[1673293485933,0.0364483,1332.5,1332.4,65.98708801]
[1673293486137,0.0364483,1332.5,1332.4,58.48183801]
[1673293486357,0.0364483,1332.5,1332.4,65.98708801]
[1673293487710,0.0364483,1332.5,1332.4,56.79983801]
[1673293488767,0.0364483,1332.5,1332.4,50.07116327]
[1673293489342,1.7734483,1332.5,1332.4,3.85465038]
[1673293489513,1.77569027,1332.5,1332.3,7.5716]
[1673293489720,10.96738027,1332.5,1332.3,0.066]
[1673293489937,11.59638027,1332.5,1332.2,14.066]
[1673293490126,9.85938027,1332.5,1332.2,17.86366064]
[1673293490340,9.85938027,1332.5,1332.2,25.37000064]
[1673293491025,9.85938027,1332.5,1332.2,32.87438064]
[1673293491026,0.66769027,1332.5,1332.2,32.87438064]
[1673293491180,0.60169027,1332.5,1332.2,32.87638064]
[1673293491391,0.60169027,1332.5,1332.2,25.37000064]
[1673293491840,1.72030228,1332.5,1332.2,25.37000064]
[1673293492047,8.15641027,1332.5,1332.2,25.37000064]
[1673293492276,9.29102228,1332.5,1332.2,25.37000064]
[1673293492608,8.17241027,1332.5,1332.2,17.86366064]
[1673293492754,9.29102228,1332.5,1332.2,17.86366064]
[1673293492965,16.79574228,1332.5,1332.2,17.86366064]
[1673293493411,16.79574228,1332.5,1332.2,25.37003064]
[1673293494123,15.67713027,1332.5,1332.2,25.37003064]
[1673293494674,24.30046228,1332.5,1332.2,17.86366064]
[1673293496067,24.30046228,1332.5,1332.2,25.86366064]
[1673293496373,24.30046228,1332.5,1332.2,33.37002064]
[1673293496745,15.67713027,1332.5,1332.2,40.87640064]
[1673293496960,8.17241027,1332.5,1332.2,40.87640064]
[1673293497206,0.66769027,1332.5,1332.3,3.79766064]
[1673293497428,0.0364483,1332.5,1332.4,22.51575]
[1673293497706,0.0364483,1332.5,1332.4,22.58175]
[1673293497860,0.0364483,1332.5,1332.4,26.37941064]
[1673293498250,0.0364483,1332.5,1332.4,28.07441064]
[1673293498494,0.0364483,1332.5,1332.4,24.1271417]
[1673293499415,0.0364483,1332.5,1332.4,20.56916064]
[1673293500916,0.0364483,1332.5,1332.4,26.37941064]
[1673293501496,0.0364483,1332.5,1332.4,56.40066352]
[1673293502174,0.0364483,1332.5,1332.4,56.84746352]
[1673293502385,0.0364483,1332.5,1332.4,56.40066352]
[1673293502729,0.0364483,1332.5,1332.4,58.20369099]
[1673293503540,0.0364483,1332.5,1332.4,62.83594387]
[1673293504127,0.0364483,1332.5,1332.4,58.20369099]
[1673293505969,0.0364483,1332.5,1332.4,57.49569099]
[1673293506371,8.3e-06,1332.5,1332.4,57.49569099]
[1673293508019,8.3e-06,1332.5,1332.4,66.02319527]
[1673293508440,8.3e-06,1332.5,1332.4,65.00094099]
[1673293508880,8.3e-06,1332.5,1332.4,66.02398906]
[1673293510068,8.3e-06,1332.5,1332.4,67.48746523]
[1673293510388,8.3e-06,1332.5,1332.4,85.36443506]
[1673293510575,8.3e-06,1332.5,1332.4,83.90095889]
[1673293511480,8.3e-06,1332.5,1332.4,82.87791082]
[1673293511963,8.3e-06,1332.5,1332.4,72.69166082]
[1673293512432,8.3e-06,1332.5,1332.4,54.81469099]
[1673293515101,8.3e-06,1332.5,1332.4,55.48129099]
[1673293516115,8.3e-06,1332.5,1332.4,62.98654099]
[1673293516373,8.3e-06,1332.5,1332.4,55.48129099]
[1673293517360,8.3e-06,1332.5,1332.4,56.83029099]
[1673293517488,8.3e-06,1332.5,1332.4,64.33554099]
[1673293518278,8.3e-06,1332.5,1332.4,56.83029099]
[1673293518484,8.3e-06,1332.5,1332.4,64.33554099]
[1673293520428,8.3e-06,1332.5,1332.4,65.34932714]
[1673293520634,8.3e-06,1332.5,1332.4,57.84407714]
[1673293521630,8.3e-06,1332.5,1332.4,65.34932714]
[1673293521845,8.3e-06,1332.5,1332.4,56.83029099]
[1673293522894,8.3e-06,1332.5,1332.4,49.04601064]
[1673293523316,8.3e-06,1332.5,1332.4,56.55126064]
[1673293524849,8.3e-06,1332.5,1332.4,57.56489071]
[1673293525058,8.3e-06,1332.5,1332.4,57.56489876]
[1673293525696,8.3e-06,1332.5,1332.4,60.37037669]
[1673293525910,8.3e-06,1332.5,1332.4,66.68806797]
[1673293529890,8.3e-06,1332.5,1332.4,65.23159004]
[1673293530094,8.3e-06,1332.5,1332.4,65.23144874]
[1673293530307,8.3e-06,1332.5,1332.4,64.21795192]
[1673293532151,8.3e-06,1332.5,1332.4,56.71270192]
[1673293532296,8.3e-06,1332.5,1332.4,55.36370192]
[1673293533423,8.3e-06,1332.5,1332.4,47.85845192]
[1673293533582,8.3e-06,1332.5,1332.4,34.03551064]
[1673293533780,8.3e-06,1332.5,1332.4,41.54076064]
[1673293534726,1.11862031,1332.5,1332.4,41.54076064]
[1673293534954,1.11862031,1332.5,1332.4,49.04601064]
[1673293535291,8.3e-06,1332.5,1332.4,49.04601064]
[1673293537079,8.3e-06,1332.5,1332.4,42.5561033]
[1673293537392,1.11862031,1332.5,1332.4,49.04601064]
[1673293537714,8.3e-06,1332.5,1332.4,49.39474008]
[1673293539077,1.11862031,1332.5,1332.4,49.39474008]
[1673293539601,1.11862031,1332.5,1332.4,40.87416064]
[1673293540126,1.11862031,1332.5,1332.4,48.37941064]
[1673293540127,1.95896675,1332.5,1332.4,48.37941064]
[1673293544327,1.95881266,1332.5,1332.4,48.37941064]
[1673293544534,1.95882436,1332.5,1332.4,48.37941064]
[1673293545129,1.11862031,1332.5,1332.4,48.37941064]
[1673293546122,8.3e-06,1332.5,1332.4,40.87416064]
[1673293546441,8.3e-06,1332.5,1332.4,48.37941064]
[1673293546593,1.11862031,1332.5,1332.4,40.87416064]
[1673293547023,8.3e-06,1332.5,1332.4,49.39477705]
[1673293547501,8.3e-06,1332.5,1332.4,55.20063096]
[1673293548127,8.3e-06,1332.5,1332.4,64.16478967]
[1673293548334,8.3e-06,1332.5,1332.4,57.78169858]
[1673293549969,1.22986479,1332.7,1332.5,0.00388528]
[1673293550288,1.22986479,1332.7,1332.6,55.81414064]
[1673293550289,0.04525278,1332.7,1332.6,55.81414064]
[1673293550529,0.04525278,1332.7,1332.6,64.89420618]
[1673293553646,0.04525278,1332.7,1332.6,63.43529747]
[1673293554496,0.04525278,1332.7,1332.6,64.89297047]
[1673293555369,0.04525278,1332.7,1332.6,63.43529747]
[1673293555601,0.04525278,1332.7,1332.6,64.89258853]
[1673293555765,0.04525278,1332.7,1332.6,64.89258637]
[1673293556108,0.04525278,1332.7,1332.6,64.89259587]
[1673293556418,0.04525278,1332.7,1332.6,64.89258808]
[1673293556846,0.04525278,1332.7,1332.6,64.89259193]
[1673293557424,0.04525278,1332.7,1332.6,63.43529747]
[1673293557656,0.04525278,1332.7,1332.6,64.89223117]
[1673293559465,0.04525278,1332.7,1332.6,63.43529747]
[1673293560335,0.04525278,1332.7,1332.6,69.52423153]
[1673293560884,0.04525278,1332.7,1332.6,68.12197865]
[1673293561765,0.04525278,1332.7,1332.6,72.75423153]
[1673293561879,0.04525278,1332.7,1332.6,68.12197865]
[1673293562307,0.04525278,1332.7,1332.6,72.75423153]
[1673293563097,0.04525278,1332.7,1332.6,68.12197865]
[1673293563255,0.04525278,1332.7,1332.6,72.75423153]
[1673293563613,0.04525278,1332.7,1332.6,74.10323153]
[1673293564949,0.04525278,1332.7,1332.6,79.73158185]
[1673293565278,0.0364483,1332.8,1332.7,4.6833448]
[1673293565493,0.0364483,1332.8,1332.7,29.91975376]
[1673293565706,0.0364483,1332.8,1332.7,65.72643376]
[1673293566088,0.0364483,1332.8,1332.7,74.72643376]
[1673293566669,0.0364483,1332.8,1332.7,70.72643376]
[1673293567248,0.0364483,1332.8,1332.7,69.60462142]
[1673293567915,0.0364483,1332.8,1332.7,70.72643376]
[1673293568321,0.0364483,1332.8,1332.7,68.26762142]
[1673293568925,0.0364483,1332.8,1332.7,75.77118142]
[1673293569443,8.3e-06,1332.8,1332.7,76.89299376]
[1673293569901,8.3e-06,1332.8,1332.7,75.77118142]
[1673293570242,8.3e-06,1332.8,1332.7,76.89299376]
[1673293570395,8.3e-06,1332.8,1332.7,75.77118142]
[1673293571233,8.3e-06,1332.8,1332.7,95.42366967]
[1673293571691,8.3e-06,1332.8,1332.7,99.92766967]
[1673293572517,8.3e-06,1332.8,1332.7,79.92766967]
[1673293573173,8.3e-06,1332.8,1332.7,99.92766967]
[1673293573703,8.3e-06,1332.8,1332.7,99.92566967]
[1673293573881,8.3e-06,1332.8,1332.7,99.92766967]
[1673293574542,8.3e-06,1332.8,1332.7,99.27518142]
[1673293576733,8.3e-06,1332.8,1332.7,99.93318142]
[1673293578919,8.3e-06,1332.8,1332.7,114.74520885]
[1673293580967,0.04967773,1333.0,1332.8,15.50887]
[1673293581127,0.06288035,1333.3,1333.0,3.5]
[1673293581322,0.012,1333.2,1333.1,51.41743833]
[1673293581538,0.06288035,1333.3,1333.2,13.18219833]
[1673293581769,0.06288035,1333.3,1333.2,35.75044833]
[1673293581995,0.06288035,1333.3,1333.2,35.98044833]
[1673293582207,0.06288035,1333.3,1333.2,46.3492848]
[1673293586067,0.06288035,1333.3,1333.2,53.8500348]
[1673293586272,0.06288035,1333.3,1333.2,58.46479718]
[1673293586505,0.06288035,1333.3,1333.2,53.8500348]
[1673293587778,0.06288035,1333.3,1333.2,108.27026664]
[1673293587996,0.06288035,1333.4,1333.3,3.5]
[1673293588237,0.06288035,1333.4,1333.3,49.08038701]
[1673293588457,0.06288035,1333.4,1333.3,71.64692701]
[1673293588611,0.06288035,1333.4,1333.3,79.14710701]
[1673293591655,0.06005765,1333.5,1333.3,79.14710701]
[1673293591867,10.33448035,1333.6,1333.4,5.61866064]
[1673293592120,10.33448035,1333.6,1333.5,48.8567067]
[1673293592331,0.12888035,1333.6,1333.5,49.1527067]
[1673293592493,0.06288035,1333.6,1333.5,49.1527067]
[1673293594647,0.06288035,1333.6,1333.5,56.6517667]
[1673293596217,0.06288035,1333.6,1333.5,61.26652908]
[1673293596425,0.066,1333.8,1333.6,3.5]
[1673293596635,0.08058584,1334.0,1333.6,3.5]
[1673293596636,0.64298584,1334.0,1333.7,55.78938064]
[1673293596961,0.64298584,1334.0,1333.9,28.99362]
[1673293597117,0.64298584,1334.0,1333.9,17.86366064]
[1673293597622,1.76159785,1334.0,1333.9,17.86366064]
[1673293597911,0.64298584,1334.0,1333.9,17.86366064]
[1673293598074,0.64298584,1334.0,1333.9,14.066]
[1673293598075,8.82213359,1334.0,1333.9,14.066]
[1673293598288,8.88813301,1334.0,1333.9,14.066]
[1673293598491,6.88398584,1334.0,1333.9,14.066]
[1673293598750,10.88023584,1334.0,1333.9,14.066]
[1673293599333,11.99884785,1334.0,1333.9,14.066]
[1673293599765,10.88023584,1334.0,1333.9,14.066]
[1673293600066,10.88023584,1334.0,1333.9,17.86366064]
[1673293600067,0.70898584,1334.0,1333.9,17.86366064]
[1673293600288,0.08058584,1334.0,1333.9,40.35409064]
[1673293600802,0.08058584,1334.0,1333.9,25.36047064]
[1673293601023,0.08058584,1334.0,1333.9,11.36047064]
[1673293601243,0.08058584,1334.0,1333.9,3.86366064]
[1673293601433,0.08058584,1334.0,1333.9,3.79766064]
[1673293602220,7.57683584,1334.0,1333.9,3.79766064]
[1673293602377,0.14658584,1334.0,1333.9,3.79766064]
[1673293602589,0.08058584,1334.0,1333.9,3.79766064]
[1673293603238,0.13058584,1334.0,1333.9,3.79766064]
[1673293603451,0.08058584,1334.0,1333.9,3.79766064]
[1673293605446,26.98957781,1334.0,1333.8,0.066]
[1673293605658,1.337,1333.9,1333.5,18.77629]
[1673293605867,24.7025,1333.9,1333.6,14.79766064]
[1673293606102,7.49748,1333.8,1333.7,3.79766064]
[1673293606394,7.56348,1333.8,1333.7,3.79766064]
[1673293607573,15.06096,1333.8,1333.7,3.79766064]
[1673293607958,15.06096,1333.8,1333.6,0.066]
[1673293607959,26.58744,1333.8,1333.6,0.066]
[1673293608186,2.673,1333.7,1333.3,37.80532848]
[1673293608397,1.347,1333.5,1333.4,3.79766064]
[1673293612473,1.347,1333.5,1333.4,11.29728064]
[1673293612708,1.347,1333.5,1333.4,11.36328064]
[1673293613552,1.347,1333.5,1333.4,3.86366064]
[1673293613724,1.347,1333.5,1333.4,3.79766064]
[1673293614175,0.066,1333.6,1333.4,21.17393755]
[1673293614402,9.1003,1333.7,1333.5,3.79766064]
[1673293614717,9.1003,1333.7,1333.6,17.79766064]
[1673293614895,0.066,1333.7,1333.6,17.86366064]
[1673293615106,25.0214308,1333.8,1333.6,17.86366064]
[1673293615304,17.5235508,1333.8,1333.6,17.86366064]
[1673293615518,8.91055,1333.8,1333.6,17.86366064]
[1673293615935,8.9104,1333.8,1333.7,3.79766064]
[1673293616181,16.40809,1333.8,1333.7,3.79766064]
[1673293616350,25.0210608,1333.8,1333.7,3.79766064]
[1673293616559,25.50312293,1333.8,1333.7,3.79766064]
[1673293617441,25.0210608,1333.8,1333.7,3.79766064]
[1673293617713,25.50312214,1333.8,1333.7,3.79766064]
[1673293618189,25.50316315,1333.8,1333.7,3.79766064]
[1673293618467,26.55856484,1333.8,1333.7,3.79766064]
[1673293618840,19.06087484,1333.8,1333.7,3.79766064]
[1673293619051,11.56316954,1333.8,1333.7,3.79766064]
[1673293619274,19.06053954,1333.8,1333.7,3.79766064]
[1673293619462,11.56313954,1333.8,1333.7,3.79766064]
[1673293619789,10.50775315,1333.8,1333.7,3.79766064]
[1673293620369,13.23675669,1333.8,1333.7,3.79766064]
[1673293621684,11.56383549,1333.8,1333.7,3.79766064]
[1673293622051,28.23149669,1333.8,1333.6,14.066]
[1673293622308,27.10783001,1333.7,1333.6,14.066]
[1673293622627,19.67590001,1333.7,1333.6,14.066]
[1673293622938,2.52501646,1333.7,1333.6,32.86066064]
[1673293623117,1.11901646,1333.7,1333.6,29.3980957]
[1673293623322,1.11901646,1333.7,1333.6,21.8995957]
[1673293623571,1.11901646,1333.7,1333.6,17.86366064]
[1673293624301,1.11901646,1333.7,1333.6,3.86366064]
[1673293624517,1.60206306,1333.7,1333.6,3.79766064]
[1673293625969,1.60206306,1333.7,1333.6,17.79766064]
[1673293626184,1.60206306,1333.7,1333.6,25.36216064]
[1673293626539,3.27498426,1333.7,1333.6,25.36216064]
[1673293628338,3.27498426,1333.7,1333.6,17.86366064]
[1673293631536,3.27498426,1333.7,1333.6,14.066]
[1673293631744,27.99560018,1333.7,1333.6,14.066]
[1673293631989,27.96339819,1333.7,1333.6,14.066]
[1673293632165,31.46339819,1333.7,1333.6,14.066]
[1673293632389,35.30768252,1333.7,1333.6,14.066]
[1673293632632,31.80768252,1333.7,1333.6,14.066]
[1673293632836,27.96339819,1333.7,1333.6,14.066]
[1673293633337,30.75160018,1333.7,1333.6,14.066]
[1673293633857,28.52103859,1333.7,1333.6,14.066]
[1673293634164,30.76030596,1333.7,1333.6,14.066]
[1673293634339,30.76030596,1333.7,1333.6,14.064]
[1673293634547,30.76030596,1333.7,1333.6,14.066]
[1673293635378,31.32280596,1333.7,1333.6,14.066]
[1673293635583,30.76030596,1333.7,1333.6,14.066]
[1673293635841,30.76630596,1333.7,1333.6,0.066]
[1673293636057,30.76513815,1333.7,1333.4,0.066]
[1673293636220,1.11902447,1333.5,1333.4,3.79766064]
[1673293636436,16.11714447,1333.5,1333.4,3.79766064]
[1673293636789,1.66807107,1333.5,1333.4,3.79766064]
[1673293636961,4.97496057,1333.6,1333.4,28.3128867]
[1673293636962,2.86356117,1333.6,1333.4,28.3128867]
[1673293637163,2.79756117,1333.6,1333.5,17.79766064]
[1673293637372,1.60180133,1333.6,1333.5,17.86366064]
[1673293638047,1.11902447,1333.6,1333.5,25.36272064]
[1673293638264,26.76064351,1333.7,1333.5,32.86178064]
[1673293638473,1.343,1333.6,1333.5,32.86178064]
[1673293639829,25.07810681,1333.7,1333.5,40.36084064]
[1673293640157,24.02202447,1333.7,1333.5,40.36084064]
[1673293640362,0.05,1333.6,1333.5,40.36084064]
[1673293640679,24.02202447,1333.7,1333.5,45.34850031]
[1673293640847,25.70056117,1333.7,1333.5,45.34850031]
[1673293642463,1.11902447,1333.6,1333.5,41.55083967]
[1673293642675,1.11902447,1333.6,1333.5,45.34850031]
[1673293644099,1.60218714,1333.6,1333.5,45.34850031]
[1673293644309,1.60218714,1333.6,1333.5,40.36084064]
[1673293644518,3.28072384,1333.6,1333.5,40.36084064]
[1673293647168,1.60218714,1333.6,1333.5,40.36084064]
[1673293647388,1.60218714,1333.6,1333.5,40.59084064]
[1673293647605,1.11902447,1333.6,1333.5,40.59084064]
[1673293647774,1.11902447,1333.6,1333.5,45.69068154]
[1673293648928,2.79756117,1333.7,1333.5,47.05914117]
[1673293649242,2.79756117,1333.7,1333.6,30.02316064]
[1673293649448,3.28601765,1333.7,1333.6,30.08916064]
[1673293649866,1.60748095,1333.7,1333.6,30.08916064]
[1673293650076,1.60748095,1333.7,1333.6,35.75796679]
[1673293651124,1.60748095,1333.7,1333.6,32.25796679]
[1673293651125,3.28601765,1333.7,1333.6,32.25796679]
[1673293651387,1.60748095,1333.7,1333.6,32.25796679]
[1673293652549,1.6785367,1333.7,1333.6,4.09366064]
[1673293652762,2.16699318,1333.7,1333.6,19.02466064]
[1673293653081,2.16699318,1333.7,1333.6,19.09066064]
[1673293653390,2.16699318,1333.7,1333.6,11.59216064]
[1673293653544,1.6785367,1333.7,1333.6,26.58916064]
[1673293653755,2.79936486,1333.7,1333.6,26.58916064]
[1673293654704,3.28782134,1333.7,1333.6,26.58916064]
[1673293654916,2.79936486,1333.7,1333.6,26.58916064]
[1673293655363,1.60928464,1333.7,1333.6,26.58916064]
[1673293655711,1.18682816,1333.8,1333.6,48.42202765]
[1673293656014,1.12082816,1333.8,1333.7,47.78938064]
[1673293656173,8.16e-06,1333.8,1333.7,66.69062265]
[1673293656377,4.0632221,1334.0,1333.7,71.63746891]
[1673293656604,3.9972221,1334.0,1333.9,14.0]
[1673293656814,4.48294456,1334.0,1333.9,19.8964267]
[1673293658846,2.244845,1334.0,1333.9,19.8964267]
[1673293660169,2.244845,1334.0,1333.9,27.3932367]
[1673293660956,2.194845,1334.0,1333.9,34.8900467]
[1673293661357,2.194845,1334.0,1333.9,27.3932367]
[1673293662159,2.194845,1334.0,1333.9,19.8964267]
[1673293663007,17.187345,1334.0,1333.9,19.6664267]
[1673293663216,24.749595,1334.0,1333.9,17.86366064]
[1673293663450,10.81317734,1334.0,1333.9,17.86366064]
[1673293663725,4.49894456,1334.0,1333.9,17.86366064]
[1673293663872,19.42544456,1334.0,1333.9,17.86366064]
[1673293664073,19.49144456,1334.0,1333.9,17.86366064]
[1673293664575,26.98769456,1334.0,1333.9,14.066]
[1673293664785,28.14591642,1334.0,1333.9,14.066]
[1673293665035,20.5475269,1334.0,1333.9,14.066]
[1673293665258,18.8689902,1334.0,1333.9,14.066]
[1673293665572,17.81290786,1334.0,1333.9,14.066]
[1673293665991,18.8689902,1334.0,1333.9,14.066]
[1673293666359,20.5476825,1334.0,1333.9,14.066]
[1673293666782,18.8689902,1334.0,1333.9,14.066]
[1673293667044,28.04391933,1334.0,1333.9,14.066]
[1673293668306,20.54766933,1334.0,1333.9,14.066]
[1673293668523,19.49158699,1334.0,1333.9,14.066]
[1673293668835,26.98783699,1334.0,1333.9,14.066]
[1673293669041,28.04391933,1334.0,1333.9,14.066]
[1673293670712,18.8689902,1334.0,1333.9,14.066]
[1673293670931,20.54775014,1334.0,1333.9,14.066]
[1673293671310,18.8689902,1334.0,1333.9,14.066]
[1673293672518,26.3652402,1334.0,1333.9,14.066]
[1673293673163,5.55530817,1334.0,1333.9,14.066]
[1673293673472,17.25362627,1334.0,1333.9,14.066]
[1673293674058,26.98797583,1334.0,1333.9,14.066]
[1673293674313,28.04405817,1334.0,1333.9,14.066]
[1673293675995,26.3652402,1334.0,1333.9,14.066]
[1673293676316,18.8689902,1334.0,1333.9,14.066]
[1673293676508,21.65719219,1334.0,1333.9,14.066]
[1673293677042,20.60110985,1334.0,1333.9,14.066]
[1673293677210,21.65719219,1334.0,1333.9,14.066]
[1673293677425,14.16094219,1334.0,1333.9,14.066]
[1673293677802,13.10485985,1334.0,1333.9,14.066]
[1673293678103,13.10485985,1334.0,1333.9,14.064]
[1673293678416,13.10485985,1334.0,1333.9,14.066]
[1673293679102,14.16094219,1334.0,1333.9,14.066]
[1673293679572,13.10485985,1334.0,1333.9,14.066]
[1673293681643,10.31665786,1334.0,1333.9,14.066]
[1673293681851,13.10485985,1334.0,1333.9,14.066]
[1673293682059,20.60110985,1334.0,1333.9,14.066]
[1673293682510,21.65719219,1334.0,1333.9,14.066]
[1673293683351,13.10485985,1334.0,1333.9,14.066]
[1673293684378,13.10485985,1334.0,1333.9,0.066]
[1673293684597,13.10485985,1334.0,1333.8,0.03149714]
[1673293684794,2.16572659,1333.9,1333.8,3.82915778]
[1673293685007,2.16572659,1333.9,1333.8,19.14793658]
[1673293685216,2.16572659,1333.9,1333.8,19.21393658]
[1673293685447,3.28576974,1333.9,1333.8,19.21393658]
[1673293686238,2.16572659,1333.9,1333.8,19.21393658]
[1673293687538,2.16572659,1333.9,1333.8,26.71130658]
[1673293687847,3.28626014,1333.9,1333.8,34.43867658]
[1673293688060,3.28626014,1333.9,1333.8,41.93604658]
[1673293688239,3.28626014,1333.9,1333.8,34.43867658]
[1673293688450,3.28626014,1333.9,1333.8,41.93604658]
[1673293689922,1.60625601,1333.9,1333.8,41.93604658]
[1673293690140,3.28626014,1333.9,1333.8,41.93604658]
[1673293690336,2.16572659,1333.9,1333.8,19.41243944]
[1673293690544,2.16572659,1333.9,1333.8,18.09366064]
[1673293690950,26.89425615,1333.9,1333.8,17.86366064]
[1673293691210,11.96663615,1333.9,1333.8,17.86366064]
[1673293692267,2.78982202,1333.9,1333.8,17.86366064]
[1673293692475,19.61554445,1333.9,1333.8,14.066]
[1673293692687,19.68154445,1333.9,1333.8,14.066]
[1673293692878,12.18473445,1333.9,1333.8,14.066]
[1673293693091,19.68154445,1333.9,1333.8,14.066]
[1673293694662,27.17835445,1333.9,1333.8,14.066]
[1673293697228,27.50835445,1333.9,1333.8,14.066]
[1673293697387,24.72015246,1333.9,1333.8,14.066]
[1673293698276,20.02585615,1333.9,1333.8,14.066]
[1673293698654,27.52266615,1333.9,1333.8,14.066]
[1673293700649,20.02585615,1333.9,1333.8,14.066]
[1673293701487,12.52904615,1333.9,1333.8,14.066]
[1673293702137,20.07585615,1333.9,1333.8,14.066]
[1673293702355,20.02585615,1333.9,1333.8,14.066]
[1673293703318,18.34785615,1333.9,1333.8,14.066]
[1673293704344,25.84466615,1333.9,1333.8,14.066]
[1673293704695,18.34785615,1333.9,1333.8,14.066]
[1673293705064,25.84466615,1333.9,1333.8,14.066]
[1673293705489,18.34785615,1333.9,1333.8,14.066]
[1673293707796,25.84466615,1333.9,1333.8,14.066]
[1673293708007,18.34785615,1333.9,1333.8,0.066]
[1673293708217,18.34785615,1333.9,1333.6,31.17122]
[1673293708458,18.34785615,1333.9,1333.6,31.97439027]
[1673293708459,1.12125707,1333.7,1333.6,31.97439027]
[1673293708638,1.12125707,1333.7,1333.6,23.86579027]
[1673293708848,1.60697953,1333.7,1333.6,23.86579027]
[1673293709048,1.65094645,1333.7,1333.6,59.36429027]
[1673293709263,1.12125707,1333.7,1333.6,59.36429027]
[1673293712644,2.26157961,1333.8,1333.6,75.68847111]
[1673293712645,2.80314268,1333.8,1333.6,75.68847111]
[1673293712853,3.33302869,1333.8,1333.7,11.03863551]
[1673293713184,3.33302869,1333.8,1333.7,33.59842551]
[1673293713581,3.33302869,1333.8,1333.7,26.10049551]
[1673293713777,3.33302869,1333.8,1333.7,33.59842551]
[1673293714249,3.33322251,1333.8,1333.7,30.09842551]
[1673293714837,3.33322251,1333.8,1333.7,15.06186]
[1673293715195,3.33322251,1333.8,1333.7,18.56186]
[1673293715512,3.33322251,1333.8,1333.7,22.55979]
[1673293716617,3.33322251,1333.8,1333.7,26.35745064]
[1673293716829,3.33322251,1333.8,1333.7,26.39043911]
[1673293717037,3.33322251,1333.8,1333.7,32.59888198]
[1673293717263,1.6513369,1333.8,1333.7,32.59888198]
[1673293717812,3.33322251,1333.8,1333.7,32.59888198]
[1673293718966,1.6513369,1333.8,1333.7,32.59888198]
[1673293719170,3.99039975,1333.9,1333.7,32.59888198]
[1673293719171,2.8693365,1333.9,1333.7,44.80363968]
[1673293719426,2.8033365,1333.9,1333.8,22.27802461]
[1673293719729,2.8033365,1333.9,1333.8,52.83613461]
[1673293719730,1.69525442,1333.9,1333.8,52.83613461]
[1673293719921,1.69525442,1333.9,1333.8,45.33876461]
[1673293719922,3.37714003,1333.9,1333.8,45.33876461]
[1673293720455,3.37714003,1333.9,1333.8,52.83613461]
[1673293720995,3.37714003,1333.9,1333.8,37.84139461]
[1673293720996,2.25568914,1333.9,1333.8,37.84139461]
[1673293721181,2.25568914,1333.9,1333.8,33.36103064]
[1673293721801,2.25568914,1333.9,1333.8,25.86366064]
[1673293722584,2.24568914,1333.9,1333.8,40.85840064]
[1673293722770,2.24568914,1333.9,1333.8,33.36103064]
[1673293722984,4.48820328,1333.9,1333.8,33.36103064]
[1673293723304,4.48820328,1333.9,1333.8,53.98433384]
[1673293723461,13.10583916,1333.9,1333.8,0.066]
[1673293723671,13.10583916,1333.9,1333.6,8.4779]
[1673293723672,12.62112722,1333.9,1333.7,14.0]
[1673293723939,12.62112722,1333.9,1333.7,14.066]
[1673293723940,2.24255666,1333.8,1333.7,14.066]
[1673293724353,17.23729666,1333.8,1333.7,14.066]
[1673293724532,20.10581035,1333.8,1333.7,14.066]
[1673293724744,17.30329666,1333.8,1333.7,14.066]
[1673293724936,27.60318035,1333.8,1333.7,14.066]
[1673293725146,25.36062369,1333.8,1333.7,14.066]
[1673293725581,41.30307258,1333.8,1333.7,0.012]
[1673293725772,3.96818795,1333.6,1333.2,8.07821223]
[1673293726037,4.62845851,1333.3,1333.2,8.14421223]
[1673293726230,3.507,1333.3,1333.2,8.14421223]
[1673293727175,16.21678824,1333.4,1333.2,8.14421223]
[1673293727352,12.84260048,1333.4,1333.2,8.14421223]
[1673293728196,11.72114197,1333.4,1333.2,8.14421223]
[1673293728984,20.34229048,1333.4,1333.2,8.14421223]
[1673293729576,27.84198048,1333.4,1333.2,8.14421223]
[1673293730002,35.34167048,1333.4,1333.2,8.14421223]
[1673293731048,11.00718,1333.3,1333.2,8.14421223]
[1673293731303,11.07318,1333.3,1333.2,8.14421223]
[1673293731521,15.06636,1333.3,1333.2,8.14421223]
[1673293732100,22.56654,1333.3,1333.2,8.14421223]
[1673293732669,23.68799851,1333.3,1333.2,0.14421223]